Cogmind - Beta 13 @@@ ROGUE MODE // 2024.07.06 @ 22:30:58 Player: Electroneer Result: Destroyed by G-34 Mercenary with Small Laser Performance ------------- Evolutions (0) 0 Regions Visited (1) 200 Robots Destroyed (18) 90 Value Destroyed (255) 255 Prototype IDs (0) 0 Alien Tech Used (0) 0 Bonus (0) 0 TOTAL SCORE: 545 Bonus ------- None Cogmind --------- Core Integrity 0/250 Matter 249/300 Energy 201/250 System Corruption 0% Temperature Cool (6) Movement Walking (190) Ox1 Location -10/Materials Parts ------- > --- POWER (1) -------- Ion Engine > --- PROPULSION (2) --- Aluminum Leg Aluminum Leg > --- UTILITY (2) ------ Large Storage Unit Seismic Detector > --- WEAPON (2) ------- Assault Rifle Light Assault Rifle > --- INVENTORY (15) --- Light Ion Engine Aluminum Leg Medium Matter Pod (100) Mining Laser Peak State ------------ > --- POWER ------------ Ion Engine > --- PROPULSION ------- Aluminum Leg Aluminum Leg > --- UTILITY ---------- Large Storage Unit Seismic Detector > --- WEAPON ----------- EM Pulse Gun EM Pulse Gun > --- INVENTORY -------- Ion Engine Light Ion Engine Aluminum Leg Aluminum Leg Aluminum Leg Medium Matter Pod EM Pulse Gun Assault Rifle Light Assault Rifle Mining Laser [Rating: 8] Favorites ----------- Power Ion Engine Engine Ion Engine Propulsion Aluminum Leg Leg Aluminum Leg Utility Seismic Detector Device Seismic Detector Storage Small Storage Unit Weapon EM Pulse Gun Energy Gun EM Pulse Gun Ballistic Gun Assault Rifle Launcher Grenade Launcher Build | -11 -10 ------- Run | Yrd Mat Slots Evolved . | . . Power . | . . Propulsion . | . . Utility . | . . Weapon . | . . Parts Attached 19 | 8 11 Power 3 | 2 1 Engine 3 | 2 1 Core . | . . Reactor . | . . Propulsion 4 | 2 2 Treads . | . . Leg 4 | 2 2 Wheel . | . . Hover . | . . Flight . | . . Utility 3 | 2 1 Device 1 | 1 . Storage 2 | 1 1 Processor . | . . Hackware . | . . Protection . | . . Artifact . | . . Weapon 9 | 2 7 Energy Gun 5 | 1 4 Energy Cannon . | . . Ballistic Gun 3 | 1 2 Ballistic Cannon . | . . Launcher 1 | . 1 Special Weapon . | . . Impact Weapon . | . . Slashing Weapon . | . . Piercing Weapon . | . . Special Melee Weapon . | . . Unidentified Prototypes . | . . Parts Lost 8 | . 8 Power 1 | . 1 Propulsion 2 | . 2 Utility . | . . Weapon 5 | . 5 Highest Loss Streak 7 | . 7 To Critical Strikes . | . . Average Slot Usage (%) 97 | . 97 Engine 13 | . 13 Leg 27 | . 27 Device 14 | . 14 Storage 14 | . 14 Energy Gun 16 | . 16 Ballistic Gun 4 | . 4 Launcher 4 | . 4 Naked Turns . | . . Heaviest Build 31 | 15 31 Greatest Support 20 | 20 20 Greatest Overweight (x) 1 | . 1 Average Overweight (x) . | . . Largest Inventory Capacity 15 | 8 15 Average Capacity 11 | 7 12 Most Carried 11 | 4 11 Average Carried 6 | 2 7 Final Capacity 15 | 8 15 Final Carried 4 | 4 4 Class Distribution -------------------- 100% | Mutant Dominant Class ---------------- Mutant | -10/Materials Resources | -11 -10 ----------- Run | Yrd Mat Matter Collected 491 | 378 113 Remotely . | . . Salvage Created 677 | 220 457 Parts 52 | 19 33 Haulers Intercepted 1 | . 1 Recyclers Shooed 2 | . 2 Parts Field Recycled . | . . Retrieved Matter . | . . Parts Self-Destructed . | . . Prevented . | . . Kills | -11 -10 ------- Run | Yrd Mat Combat Hostiles Destroyed 7 | . 7 Guns 7 | . 7 Classes Destroyed 8 | 3 5 Worker 2 | 2 . Builder 1 | . 1 Tunneler 4 | 4 . Hauler 1 | . 1 Recycler 2 | 1 1 Watcher 1 | . 1 Swarmer 2 | . 2 Grunt 5 | . 5 Best Kill Streak 3 | 3 3 Combat Bots Only 3 | . 3 Max Kills in Single Turn 1 | 1 1 Gunslinging . | . . Exploded . | . . Melee . | . . Uniques/NPCs Destroyed . | . . Combat | -11 -10 -------- Run | Yrd Mat Hostile Shots Fired 105 | . 105 Missed 34 | . 34 Damage Taken 978 | 18 960 Core 261 | 18 243 Absorbed by Shields . | . . Core Remaining (%) 92 | 92 . Volleys Fired 61 | 16 45 Largest 2 | 2 2 Hottest 80 | 60 80 Shots Fired 103 | 20 83 Gun 102 | 20 82 Cannon . | . . Launcher 1 | . 1 Special . | . . Kinetic 31 | 4 27 Thermal . | . . Explosive 1 | . 1 Electromagnetic 71 | 16 55 Robot Hit Streak 11 | 7 11 Robot Miss Streak 5 | 2 5 Penetration Max . | . . Secondary Targets . | . . Shots Hit Robots 64 | 13 51 Core Hits 31 | 8 23 Critical Kills . | . . Critical Parts Destroyed . | . . Critical Strikes . | . . Melee Attacks . | . . Impact . | . . Slashing . | . . Piercing . | . . Sneak Attacks . | . . Combat Hostiles . | . . Follow-up Attacks . | . . Damage Inflicted 1051 | 199 852 Guns 870 | 177 693 Cannons . | . . Explosions 181 | 22 159 Melee . | . . Ramming . | . . Kinetic 206 | 41 165 Thermal 122 | 22 100 Explosive 59 | . 59 Electromagnetic 664 | 136 528 Impact . | . . Slashing . | . . Piercing . | . . Highest Corruption . | . . Average Corruption . | . . Corruption Purged . | . . Corruption Blocked . | . . Overload Shots . | . . Overflow Damage 3 | . 3 Projectiles . | . . Explosions 3 | . 3 Melee . | . . Knockbacks . | . . Impact . | . . Kinetic . | . . Secondary . | . . Self-Inflicted Damage 110 | 18 92 Shots 4 | 1 3 Rammed . | . . Targets Rammed . | . . Kicked . | . . Crushed . | . . Highest Temperature 264 | 12 264 Average Temperature 88 | 8 90 Received Heat Transfer 192 | . 192 Siege Activations . | . . Robots Corrupted . | . . Combat Hostiles . | . . Parts Fried 2 | . 2 Impact Corruptions . | . . Robots Melted . | . . Combat Hostiles . | . . Parts Melted . | . . Heat Transferred 250 | 50 200 Parts Sabotaged . | . . Parts Stolen . | . . Parts Stripped . | . . Power Chain Reactions 4 | 1 3 Alert | -11 -10 ------- Run | Yrd Mat Peak Influence 156 | 35 156 Initial 22 | . 22 Average 71 | 17 97 Maximum Alert Level . | . . Low Security (%) 100 | 100 100 Level 1 . | . . Level 2 . | . . Level 3 . | . . Level 4 . | . . Level 5 . | . . High Security . | . . Max Security . | . . Squads Dispatched 4 | . 4 Investigation 2 | . 2 Extermination . | . . Reinforcement 2 | . 2 Assault . | . . Garrison . | . . Intercept . | . . Searches Triggered . | . . Construction Impeded . | . . Haulers Reinforced . | . . Active Scanning Responses . | . . Cargo Convoy Interrupts . | . . Stealth | -11 -10 --------- Run | Yrd Mat Distress Signals 1 | . 1 Communications Jammed . | . . Distress Signals . | . . Times Spotted 17 | . 17 Peak Tracking Total 6 | . 6 Tactical Retreats 1 | . 1 Traps | -11 -10 ------- Run | Yrd Mat Traps Triggered . | . . Indirectly . | . . Trap Hack Attempts . | . . Triggered . | . . Disarmed . | . . Reprogrammed 1 | . 1 Reused 1 | . 1 Traps Extracted . | . . Installed . | . . Triggered 1 | . 1 Machines | -11 -10 ---------- Run | Yrd Mat Machines Disabled . | . . Max in Single Turn . | . . Machines Repaired . | . . Machines Dismantled . | . . Machines Sabotaged . | . . Overloaded Fab Kills . | . . Hacking | -11 -10 --------- Run | Yrd Mat Machines Accessed 3 | . 3 Terminals 2 | . 2 Fabricators . | . . Repair Stations 1 | . 1 Recycling Units . | . . Scanalyzers . | . . Garrison Access . | . . Total Hacks 9 | . 9 Successful 2 | . 2 Failed 7 | . 7 Catastrophic 1 | . 1 Database Lockouts . | . . Manual 2 | . 2 Terminals 6 | . 6 Fabricators . | . . Repair Stations 3 | . 3 Recycling Units . | . . Scanalyzers . | . . Garrison Access . | . . Terminal Hacks 1 | . 1 Reprogram Traps 1 | . 1 Fabricator Hacks . | . . Repair Station Hacks 1 | . 1 Scan Component 1 | . 1 Recycling Unit Hacks . | . . Scanalyzer . | . . Garrison Access Hacks . | . . Unauthorized Hacks . | . . Terminals . | . . Fabricators . | . . Repair Stations . | . . Recycling Units . | . . Scanalyzers . | . . Garrison Access . | . . Data Cores Recovered . | . . Used . | . . Hacking Detections 3 | . 3 Full Trace Events 2 | . 2 Feedback Events . | . . Feedback Blocked . | . . Robot Schematics Acquired . | . . Robots Built . | . . Authchips . | . . Time . | . . Total Robot Build Rating . | . . Part Schematics Acquired . | . . Parts Built . | . . Authchips . | . . Time . | . . Total Part Build Rating . | . . Parts Repaired . | . . Time . | . . Parts Recycled . | . . Recycled Matter . | . . Retrieved Matter . | . . Retrieved Components . | . . Parts Scanalyzed . | . . Part Schematics Acquired . | . . Parts Damaged . | . . Bothacking | -11 -10 ------------ Run | Yrd Mat Used RIF Installer . | . . Robots Hacked . | . . Non-combat . | . . Combat . | . . Robot Hacks Applied . | . . Relay Couplers Released . | . . Fabnet Peak Effective % . | . . Robots Rewired . | . . Allies Hacked . | . . Hacks Repelled . | . . Allies | -11 -10 -------- Run | Yrd Mat Total Allies . | . . Largest Group . | . . Highest-Rated Group . | . . Highest-Rated Ally . | . . Total Orders . | . . Ally Attacks . | . . Total Damage . | . . Kills . | . . Allies Corrupted . | . . Allies Melted . | . . Intel | -11 -10 ------- Run | Yrd Mat Robot Analysis Total . | . . Derelict Logs Recovered . | . . Drone Launches . | . . Drone Recoveries . | . . Exploration | -11 -10 ------------- Run | Yrd Mat Turns Passed 756 | 245 511 Spaces Moved 382 | 165 217 Core 5 | 5 . Treads . | . . Legs 377 | 160 217 Wheels . | . . Hover . | . . Flight . | . . Fastest Speed 50 | 50 120 Average Speed 144 | 117 165 Slowest Speed 190 | 120 190 Overloaded Moves . | . . Propulsion Burnouts . | . . Robots Hopped . | . . Cave-ins Triggered . | . . Exploration Rate (%) 18 | 7 30 Regions Visited 1 Branch Regions . Pre-discovered Areas . | . . Known Exits Taken . | . . Unknown Exits Taken 1 | 1 . Scrap Searched . | . . Spaces Dug . | . . Terrain Destroyed 25 | 7 18 Melee . | . . Projectile . | . . AOE 25 | 7 18 Terrain Rammed . | . . Walls Destroyed . | . . Machines Disabled . | . . Actions | -11 -10 --------- Run | Yrd Mat Total 481 | 192 289 Wait 7 | . 7 Move 381 | 164 217 Hop . | . . Pick Up 10 | 4 6 Fast Attach 8 | 6 2 Attach 8 | 1 7 Detach 1 | . 1 Swap 3 | 1 2 Drop 2 | . 2 Fire 61 | 16 45 Melee . | . . Ram . | . . Kick . | . . Crush . | . . Escape Stasis . | . . Rewire . | . . Trap . | . . Miscellaneous . | . . Route ------- -11/Scrapyard -10/Materials (discovered 1 exit: [*Mat]) History --------- Turn | Location | Event 7 | -11/Scrapyard | Discovered new exit (range 15) 246 | -11/Scrapyard | Entered Materials 304 | -10/Materials | Build established: Mutant 558 | -10/Materials | Discovered new exit (range 8) 705 | -10/Materials | Core integrity fell below 50% 734 | -10/Materials | Core integrity fell below 20% 757 | -10/Materials | Destroyed by G-34 Mercenary with Small Laser Last Messages --------------- 00673_ R-06 Scavenger collects Corrupted Sml. Laser. 00673_ Chain reaction triggered in Lgt. Ion Engine. 00694_ U-05 Engineer lays Concrete. 00701_ U-05 Engineer builds a Wall. 00702_ EM Pulse Gun destroyed. 00702_ U-05 Engineer lays Concrete. 00705_ U-05 Engineer builds a Door. 00710_ U-05 Engineer builds a Wall. 00710_ S-10 Pest destroyed. 00712_ EM Pulse Gun destroyed. 00714_ U-05 Engineer lays Concrete. 00715_ Ion Engine destroyed. 00717_ R-06 Scavenger destroyed. 00717_ Aluminum Leg destroyed. 00718_ G-34 Mercenary destroyed. 00721_ Aluminum Leg destroyed. 00728_ EM Pulse Gun destroyed. 00732_ R-06 Scavenger collects Lgt. Assault Rifle. 00743_ Acquired 18 matter. 00754_ S-10 Pest destroyed. Map ----- +----------------------------------------------------+ | ???# #? ????????????????????????????????????? | | ???# #? ?????????????????????????????????????? | | ???# #?? ??????????????????????????????????????? | | ???# #??# ##########?????????????????????????????? | | ???# #### ## #?????????????????????????????? | | #### # " #? ??????????????????????????? | | # """#? "?????????????????????????? | | + """#? "?????????????????????????? | | # """## ""??? ??????????????????? | | ## # "" ## ??? #????????????????? | | ?# # """## ?? % #????????????????? | | ?# # ""## """ #????????????????? | | ?#% # """## """ #????????????????? | | ?# # " ## """ #????????????????? | | ?# % # ## #????????????????? | | ## ##/####### ###??????????????? | | ## % ####### ?????????????? | | ## % ^^ ?????????????? | | # %###### ^^ ?????????????? | | # ##???# =![! ?????????????????? | | # ##???# [=%=%###########??????????????? | | + #????# %==*=# ! #??????????????? | | # #?#### #########= # ! [ #??????????????? | | # ###! #???????# # [ #??????????????? | | # ##! #??###### s#% #??????????????? | | ## ##! #### ## %g@ " "" #??????????????? | | ##! # ## # "R"" #??????????????? | | ##! # # # """ #??????????????? | | ## #?#! % # # #??????????????? | | ?# #?#### =## # ###########??????????????? | | ## ##### # # #????????????????????????? | | # [# #????????????????????????? | | [ +% # #????????????????????????? | | ######+## # # #????????????????????????? | | ?# ### # < #????????????????????????? | | ?#! #?## # #????????????????????????? | | ?# #??# #####????????????????????????? | | ?# """ #??## " #????????????????????????????? | | ?# """ #???## """ #????????????????????????????? | | ?# """ #????# #????????????????????????????? | | ?#######?????########????????????????????????????? | | | | | | | | | | | | | | | | | | | +----------------------------------------------------+ Best States ------------- Heat Dissipation 25 Energy Generation 10 Energy Capacity 250 Matter Stores 300 Matter Capacity 300 Sight Range 16 Terrain Scan Density 10 Evasion (%) 55 Item Schematics ----------------- None Robot Schematics ------------------ None Fabricated ------------ Nothing Alien Tech Used ----------------- None Achievements -------------- None Challenges ------------ None Game ------ Seed AluminumImprinterPerforator Manual? 0 Play Time 00:10:24 Cumulative 7.1 hours Start 2024.07.06 @ 22:21:07 End 2024.07.06 @ 22:30:58 Sessions 1 Manual Loads 0 Difficulty Rogue Special Mode None Game No. 8 Rogue 8 Adventurer 0 Explorer 0 Win Type - Total 0 Types 0/0/0/0/0/0/0/0/0 Lore% 14 Gallery% 10 Achievement% 11 Wizard Run 0 Options --------- Layout 0 ASCII 0 Keyboard 1 Movement Numpad Keybinds 0 Fullscreen 2 Font 24/Tamsyn Map View 183x50 Zoom Use 0% Tactical HUD 1 Map Filters NONE Filters NONE Steam 1 RUN: 71157d50-2820-4f35-8c51-4982773c05c8